lending/lending_fUSD_20250121
["ID","MTS","AMOUNT","RATE_DAILY","PERIOD"]
[349807404,1737438639858,-500.0,0.00021274,2]
[349807405,1737438639868,-500.0,0.00021274,2]
[349807406,1737438639879,-511.84,0.00021274,2]
[349807407,1737438639889,-500.0,0.00021274,2]
[349807408,1737438639898,-581.86,0.00021274,2]
[349807409,1737438639909,-500.0,0.00021274,2]
[349807410,1737438639918,-500.0,0.00021274,2]
[349807411,1737438639927,-874.89,0.00021274,2]
[349807412,1737438639936,-500.0,0.00021274,2]
[349807413,1737438639946,-800.74,0.00021274,2]
[349807414,1737438639955,-907.52,0.00021274,2]
[349807415,1737438639964,-500.0,0.00021274,2]
[349807416,1737438639973,-500.0,0.00021274,2]
[349807417,1737438639982,-500.0,0.00021274,2]
[349807418,1737438639992,-921.66,0.00021274,2]
[349807419,1737438640001,-500.0,0.00021274,2]
[349807420,1737438640010,-500.0,0.00021274,2]
[349807421,1737438640019,-500.0,0.00021274,2]
[349807422,1737438640028,-500.0,0.00021274,2]
[349807423,1737438640037,-500.0,0.00021274,2]
[349807424,1737438640047,-500.0,0.00021274,2]
[349807425,1737438640056,-500.0,0.00021274,2]
[349807426,1737438640065,-500.0,0.00021274,2]
[349807427,1737438640074,-500.0,0.00021274,2]
[349807428,1737438640083,-500.0,0.00021274,2]
[349807429,1737438640092,-500.0,0.00021274,2]
[349807431,1737438640102,-500.0,0.00021274,2]
[349807433,1737438640111,-500.0,0.00021274,2]
[349807434,1737438640120,-500.0,0.00021274,2]
[349807435,1737438640131,-500.0,0.00021274,2]
[349807436,1737438640140,-500.0,0.00021274,2]
[349807437,1737438640150,-500.0,0.00021274,2]
[349807438,1737438640159,-500.0,0.00021274,2]
[349807439,1737438640168,-500.0,0.00021274,2]
[349807440,1737438640176,-500.0,0.00021274,2]
[349807441,1737438640186,-500.0,0.00021274,2]
[349807442,1737438640195,-500.0,0.00021274,2]
[349807443,1737438640204,-640.17,0.00021274,2]
[349807444,1737438640213,-500.0,0.00021274,2]
[349807445,1737438640223,-158.12,0.00021274,2]
[349807446,1737438640233,-500.0,0.00021275,2]
[349807447,1737438640243,-500.0,0.00021275,2]
[349807448,1737438640252,-344.76,0.00021275,2]
[349807449,1737438640262,-500.0,0.00021275,2]
[349807450,1737438640271,-500.0,0.00021275,2]
[349807451,1737438640280,-500.0,0.00021275,2]
[349807452,1737438640290,-500.0,0.00021275,2]
[349807453,1737438640299,-500.0,0.00021275,2]
[349807454,1737438640308,-500.0,0.00021275,2]
[349807455,1737438640317,-151.42,0.00021275,2]
[349807456,1737438640327,-332.5,0.00021275,2]
[349807457,1737438640336,-156.73,0.00021275,2]
[349807458,1737438640345,-500.0,0.00021275,2]
[349807459,1737438640355,-374.65,0.00021275,2]
[349807460,1737438640364,-500.0,0.00021275,2]
[349807461,1737438640373,-500.0,0.00021275,2]
[349807462,1737438640384,-500.0,0.00021275,2]
[349807463,1737438640393,-500.0,0.00021275,2]
[349807464,1737438640403,-693.25,0.00021275,2]
[349807465,1737438640412,-500.0,0.00021275,2]
[349807466,1737438640421,-500.0,0.00021275,2]
[349807467,1737438640431,-500.0,0.00021275,2]
[349807468,1737438640440,-997.35,0.00021275,2]
[349807469,1737438640450,-500.0,0.00021275,2]
[349807470,1737438640461,-500.0,0.00021275,2]
[349807471,1737438640471,-500.0,0.00021275,2]
[349807472,1737438640481,-500.0,0.00021275,2]
[349807473,1737438640492,-600.81,0.00021275,2]
[349807474,1737438640501,-553.48,0.00021275,2]
[349807475,1737438640511,-1032.9,0.00021275,2]
[349807476,1737438640521,-531.79,0.00021275,2]
[349807477,1737438640530,-500.0,0.00021275,2]
[349807478,1737438640539,-446.13930528,0.00021275,2]
[349807479,1737438640549,-500.0,0.00021275,2]
[349807480,1737438640558,-500.0,0.00021275,2]
[349807481,1737438640568,-500.0,0.00021275,2]
[349807482,1737438640578,-667.1,0.00021275,2]
[349807483,1737438640588,-500.0,0.00021275,2]
[349807484,1737438640597,-500.0,0.00021275,2]
[349807485,1737438640606,-500.0,0.00021275,2]
[349807487,1737438640615,-500.0,0.00021275,2]
[349807489,1737438640624,-500.0,0.00021275,2]
[349807491,1737438640634,-716.58,0.00021275,2]
[349807492,1737438640643,-500.0,0.00021275,2]
[349807493,1737438640653,-500.0,0.00021275,2]
[349807494,1737438640662,-186.72,0.00021275,2]
[349807496,1737438640672,-500.0,0.00021275,2]
[349807498,1737438640681,-500.0,0.00021275,2]
[349807500,1737438640690,-500.0,0.00021275,2]
[349807502,1737438640699,-516.74,0.00021275,2]
[349807504,1737438640709,-376.13,0.00021275,2]
[349807506,1737438640718,-500.0,0.00021276,2]
[349807508,1737438640727,-176.85998215,0.00021276,2]
[349807510,1737438640736,-500.0,0.00021276,2]
[349807512,1737438640746,-500.0,0.00021276,2]
[349807514,1737438640755,-500.0,0.00021276,2]
[349807516,1737438640764,-500.0,0.00021276,2]
[349807518,1737438640774,-495.65065698,0.00021276,2]
[349807519,1737438640783,-206.34062122,0.00021329,2]
[349807521,1737438640792,-6054.62395357,0.00021366,2]
[349807523,1737438640801,-500.0,0.0002141,2]
[349807525,1737438640810,-500.0,0.0002141,2]
[349807527,1737438640820,-500.0,0.0002141,2]
[349807529,1737438640829,-500.0,0.0002141,2]
[349807531,1737438640838,-595.27,0.0002141,2]
[349807533,1737438640847,-500.0,0.0002141,2]
[349807535,1737438640856,-525.82,0.0002141,2]
[349807537,1737438640866,-500.0,0.0002141,2]
[349807539,1737438640877,-557.31,0.0002141,2]
[349807541,1737438640886,-262.1193,0.00021448,2]
[349807543,1737438640895,-5120.0,0.00021463,7]
[349807545,1737438640905,-6054.62395357,0.00021499,2]
[349807547,1737438640914,-154.967888,0.00021548,2]
[349807549,1737438640924,-500.0,0.00021548,2]
[349807551,1737438640933,-182.12,0.00021548,2]
[349807553,1737438640943,-500.0,0.00021548,2]
[349807555,1737438640952,-500.0,0.00021548,2]
[349807557,1737438640962,-192.687139,0.00021548,2]
[349807559,1737438640972,-337.55,0.00021548,2]
[349807561,1737438640982,-511.84,0.00021548,2]
[349807563,1737438640991,-500.0,0.00021548,2]
[349807565,1737438641001,-581.86,0.00021548,2]
[349807567,1737438641010,-500.0,0.00021548,2]
[349807569,1737438641020,-500.0,0.00021548,2]
[349807571,1737438641029,-874.89,0.00021548,2]
[349807573,1737438641039,-500.0,0.00021548,2]
[349807575,1737438641049,-800.74,0.00021548,2]
[349807577,1737438641058,-907.52,0.00021548,2]
[349807579,1737438641068,-500.0,0.00021548,2]
[349807581,1737438641077,-500.0,0.00021548,2]
[349807583,1737438641087,-500.0,0.00021548,2]
[349807585,1737438641096,-921.66,0.00021548,2]
[349807587,1737438641105,-500.0,0.00021548,2]
[349807589,1737438641115,-500.0,0.00021548,2]
[349807591,1737438641124,-500.0,0.00021548,2]
[349807593,1737438641135,-500.0,0.00021548,2]
[349807595,1737438641145,-500.0,0.00021548,2]
[349807597,1737438641154,-500.0,0.00021548,2]
[349807599,1737438641165,-500.0,0.00021548,2]
[349807601,1737438641175,-471.05759073,0.00021548,2]
[349807603,1737438641185,-500.0,0.00021548,2]
[349807605,1737438641195,-500.0,0.00021548,2]
[349807607,1737438641204,-500.0,0.00021548,2]
[349807609,1737438641214,-646.06,0.00021548,2]
[349807611,1737438641224,-500.0,0.00021548,2]
[349807613,1737438641234,-500.0,0.00021548,2]
[349807615,1737438641244,-500.0,0.00021548,2]
[349807617,1737438641254,-500.0,0.00021548,2]
[349807619,1737438641263,-500.0,0.00021548,2]
[349807621,1737438641272,-500.0,0.00021548,2]
[349807623,1737438641281,-500.0,0.00021548,2]
[349807625,1737438641290,-500.0,0.00021548,2]
[349807627,1737438641300,-500.0,0.00021548,2]
[349807629,1737438641309,-640.17,0.00021548,2]
[349807631,1737438641318,-500.0,0.00021548,2]
[349807633,1737438641328,-500.0,0.00021549,2]
[349807635,1737438641337,-500.0,0.00021549,2]
[349807637,1737438641347,-500.0,0.00021549,2]
[349807639,1737438641356,-500.0,0.00021549,2]
[349807640,1737438641369,-500.0,0.00021549,2]
[349807642,1737438641379,-500.0,0.00021549,2]
[349807644,1737438641387,-500.0,0.00021549,2]
[349807646,1737438641396,-474.8,0.00021549,2]
[349807648,1737438641406,-500.0,0.00021549,2]
[349807650,1737438641415,-500.0,0.00021549,2]
[349807652,1737438641424,-500.0,0.00021549,2]
[349807654,1737438641433,-500.0,0.00021549,2]
[349807656,1737438641444,-693.25,0.00021549,2]
[349807658,1737438641455,-500.0,0.00021549,2]
[349807660,1737438641464,-500.0,0.00021549,2]
[349807662,1737438641474,-500.0,0.00021549,2]
[349807664,1737438641487,-997.35,0.00021549,2]
[349807666,1737438641496,-500.0,0.00021549,2]
[349807668,1737438641506,-603.13288586,0.00021549,2]
[349807670,1737438641515,-500.0,0.00021549,2]
[349807672,1737438641526,-473.52992417,0.00021549,2]
[349807674,1737438641535,-600.81,0.00021549,2]
[349807676,1737438641544,-553.48,0.00021549,2]
[349807678,1737438641555,-1032.9,0.00021549,2]
[349807680,1737438641565,-500.0,0.00021549,2]
[349807682,1737438641574,-667.1,0.00021549,2]
[349807684,1737438641583,-500.0,0.00021549,2]
[349807685,1737438641594,-716.58,0.00021549,2]
[349807686,1737438641603,-500.0,0.00021549,2]
[349807687,1737438641613,-500.0,0.00021549,2]
[349807688,1737438641622,-500.0,0.00021549,2]
[349807689,1737438641633,-630.06498306,0.00021549,2]
[349807690,1737438641795,-500.0,0.00021549,2]
[349807691,1737438641806,-516.74,0.00021549,2]
[349807692,1737438641816,-500.0,0.0002155,2]
[349807693,1737438641825,-500.0,0.0002155,2]
[349807694,1737438641834,-500.0,0.0002155,2]
[349807695,1737438641843,-500.0,0.0002155,2]
[349807696,1737438641853,-500.0,0.0002155,2]
[349807697,1737438641863,-378.4363446,0.0002156,2]
[349807698,1737438641873,-1000.0,0.000216,2]
[349807699,1737438641884,-206.34062122,0.00021614,3]
[349807700,1737438641893,-6054.62395357,0.00021633,2]
[349807701,1737438641903,-500.0,0.00021684,2]
[349807702,1737438641913,-500.0,0.00021684,2]
[349807703,1737438641922,-500.0,0.00021684,2]
[349807704,1737438641931,-500.0,0.00021684,2]
[349807705,1737438641941,-595.27,0.00021684,2]
[349807706,1737438641951,-500.0,0.00021684,2]
[349807707,1737438641960,-525.82,0.00021684,2]
[349807708,1737438641970,-500.0,0.00021684,2]
[349807709,1737438641980,-557.31,0.00021684,2]
[349807710,1737438641989,-1890.25944254,0.00021689,2]
[349807711,1737438641999,-150.0,0.00021716,2]
[349807712,1737438642008,-150.0,0.00021719,2]
[349807713,1737438642018,-150.0,0.00021728,2]
[349807714,1737438642027,-150.0,0.00021731,2]
[349807715,1737438642036,-150.0,0.00021733,2]
[349807716,1737438642046,-244.45,0.00021738,2]
[349807717,1737438642056,-150.0,0.00021746,2]
[349807718,1737438642066,-430.3178249,0.0002175,2]
[349807719,1737438642076,-150.0,0.00021752,2]
[349807720,1737438642085,-3845.84364688,0.00021754,2]
[349807721,1737438642095,-150.0,0.00021755,2]
[349807722,1737438642105,-252.49252953,0.00021765,2]
[349807723,1737438642114,-6054.62395357,0.00021766,2]
[349807724,1737438642125,-150.0,0.00021769,2]
[349807725,1737438642135,-200.0,0.00021771,2]
[349807726,1737438642145,-150.0,0.00021771,2]
[349807727,1737438642154,-3845.84364688,0.00021774,2]
[349807728,1737438642163,-10985.5001943,0.00021782,2]
[349807729,1737438642173,-150.0,0.00021789,2]
[349807730,1737438642182,-150.0,0.00021793,2]
[349807731,1737438642192,-150.0,0.00021795,2]
[349807732,1737438642201,-10985.5001943,0.00021799,2]
[349807733,1737438642211,-1000.0,0.000218,2]
[349807734,1737438642220,-1469.0,0.000218,2]
[349807735,1737438642229,-1000.0,0.00021802,2]
[349807736,1737438642239,-150.0,0.00021805,2]
[349807737,1737438642248,-1000.0,0.00021818,2]
[349807738,1737438642259,-150.0,0.0002182,2]
[349807739,1737438642268,-500.0,0.00021822,2]
[349807740,1737438642278,-500.0,0.00021822,2]
[349807741,1737438642287,-500.0,0.00021822,2]
[349807742,1737438642296,-511.84,0.00021822,2]
[349807743,1737438642305,-500.0,0.00021822,2]
[349807744,1737438642315,-581.86,0.00021822,2]
[349807745,1737438642324,-500.0,0.00021822,2]
[349807746,1737438642334,-159.01380508,0.00021822,2]
[349807747,1737438642343,-874.89,0.00021822,2]
[349807748,1737438642364,-500.0,0.00021822,2]
[349807749,1737438642375,-800.74,0.00021822,2]
[349807750,1737438642386,-907.52,0.00021822,2]
[349807751,1737438642396,-500.0,0.00021822,2]
[349807752,1737438642406,-500.0,0.00021822,2]
[349807753,1737438642416,-500.0,0.00021822,2]
[349807754,1737438642426,-921.66,0.00021822,2]
[349807755,1737438642436,-500.0,0.00021822,2]
[349807756,1737438642446,-500.0,0.00021822,2]
[349807757,1737438642456,-500.0,0.00021822,2]
[349807758,1737438642466,-500.0,0.00021822,2]
[349807759,1737438642477,-500.0,0.00021822,2]
[349807760,1737438642489,-500.0,0.00021822,2]
[349807761,1737438642499,-500.0,0.00021822,2]
[349807762,1737438642509,-500.0,0.00021822,2]
[349807763,1737438642519,-500.0,0.00021822,2]
[349807764,1737438642530,-500.0,0.00021822,2]
[349807765,1737438642540,-500.0,0.00021822,2]
[349807766,1737438642550,-500.0,0.00021822,2]
[349807767,1737438642560,-500.0,0.00021822,2]
[349807768,1737438642571,-500.0,0.00021822,2]
[349807769,1737438642582,-500.0,0.00021822,2]
[349807770,1737438642592,-500.0,0.00021822,2]
[349807771,1737438642602,-640.17,0.00021822,2]
[349807772,1737438642612,-500.0,0.00021822,2]
[349807773,1737438642622,-500.0,0.00021823,2]
[349807774,1737438642633,-500.0,0.00021823,2]
[349807775,1737438642643,-500.0,0.00021823,2]
[349807776,1737438642654,-567.64766315,0.00021823,2]
[349807777,1737438642663,-500.0,0.00021823,2]
[349807778,1737438642673,-500.0,0.00021823,2]
[349807779,1737438642683,-500.0,0.00021823,2]
[349807780,1737438642693,-500.0,0.00021823,2]
[349807781,1737438642703,-500.0,0.00021823,2]
[349807782,1737438642712,-500.0,0.00021823,2]
[349807783,1737438642722,-500.0,0.00021823,2]
[349807784,1737438642732,-500.0,0.00021823,2]
[349807785,1737438642742,-693.25,0.00021823,2]
[349807786,1737438642752,-500.0,0.00021823,2]
[349807787,1737438642762,-500.0,0.00021823,2]
[349807788,1737438642771,-500.0,0.00021823,2]
[349807789,1737438642781,-997.35,0.00021823,2]
[349807790,1737438642791,-500.0,0.00021823,2]
[349807791,1737438642801,-500.0,0.00021823,2]
[349807792,1737438642810,-600.81,0.00021823,2]
[349807793,1737438642821,-553.48,0.00021823,2]
[349807794,1737438642831,-1032.9,0.00021823,2]
[349807795,1737438642841,-448.51127931,0.00021823,2]
[349807796,1737438642851,-667.1,0.00021823,2]
[349807798,1737438642860,-500.0,0.00021823,2]
[349807799,1737438642870,-716.58,0.00021823,2]
[349807802,1737438642881,-500.0,0.00021823,2]
[349807804,1737438642891,-500.0,0.00021823,2]
[349807805,1737438642899,-500.0,0.00021823,2]
[349807807,1737438642909,-500.0,0.00021823,2]
[349807810,1737438642919,-516.74,0.00021823,2]
[349807812,1737438642929,-500.0,0.00021824,2]
[349807813,1737438642939,-500.0,0.00021824,2]
[349807815,1737438642949,-500.0,0.00021824,2]
[349807818,1737438642959,-500.0,0.00021824,2]
[349807820,1737438642969,-601.54602629,0.00021824,2]
[349807823,1737438642979,-500.0,0.00021824,2]
[349807825,1737438642989,-150.89967517,0.00021839,2]
[349807829,1737438642999,-166.0,0.00021846,2]
[349807831,1737438643009,-1000.0,0.00021846,2]
[349807834,1737438643019,-10985.5001943,0.00021847,2]
[349807839,1737438643029,-150.0,0.00021849,2]
[349807843,1737438643038,-10985.5001943,0.00021852,2]
[349807847,1737438643049,-3845.84364688,0.00021855,2]
[349807849,1737438643058,-172.37,0.00021857,2]
[349807851,1737438643069,-3845.84364688,0.00021864,2]
[349807853,1737438643079,-150.0,0.00021871,2]
[349807855,1737438643089,-3845.84364688,0.0002188,2]
[349807857,1737438643099,-10985.5001943,0.00021885,2]
[349807859,1737438643109,-500.0,0.0002189,2]
[349807861,1737438643118,-5800.0,0.00021892,2]
[349807862,1737438643129,-437.16583589,0.00021899,2]
[349807865,1737438643139,-69162.7871,0.000219,2]
[349807866,1737438643149,-23997.3821,0.000219,2]
[349807868,1737438643159,-500.0,0.000219,2]
[349807870,1737438643171,-8500.0,0.000219,2]
[349807872,1737438643181,-5800.0,0.000219,2]
[349807875,1737438643191,-6217.14324065,0.000219,2]
[349807876,1737438643201,-1000.0,0.000219,2]
[349807878,1737438643211,-448.61055451,0.000219,2]
[349807880,1737438643220,-1869.26,0.000219,31]
[349807883,1737438643230,-1869.26,0.000219,31]
[349807884,1737438643240,-1869.26,0.000219,31]
[349807887,1737438643250,-1869.26,0.000219,31]
[349807889,1737438643259,-1869.26,0.000219,31]
[349807891,1737438643269,-1869.26,0.000219,31]
[349807893,1737438643279,-1869.26,0.000219,31]
[349807895,1737438643288,-1869.26,0.000219,31]
[349807897,1737438643298,-1869.26,0.000219,31]
[349807898,1737438643308,-1869.26,0.000219,31]
[349807900,1737438643318,-1869.26,0.000219,31]
[349807903,1737438643327,-1869.26,0.000219,31]
[349807904,1737438643337,-1869.26,0.000219,31]
[349807906,1737438643347,-1869.26,0.000219,31]
[349807908,1737438643357,-1869.26,0.000219,31]
[349807910,1737438643366,-1869.26,0.000219,31]
[349807911,1737438643376,-547.64919002,0.000219,2]
[349807912,1737438643386,-6054.62395357,0.000219,2]
[349807913,1737438643395,-205.12844974,0.000219,2]
[349807914,1737438643404,-194.59916434,0.000219,2]
[349807915,1737438643414,-206.34062122,0.000219,3]
[349807916,1737438643423,-311.46219988,0.000219,4]
[349807917,1737438643432,-5049.34272362,0.000219,2]
[349807918,1737438643441,-461.74226266,0.000219,2]
[349807919,1737438643451,-673.16027644,0.000219,2]
[349807920,1737438643461,-150.0,0.00021916,2]
[349807921,1737438643471,-500.0,0.00021917,2]
[349807922,1737438643485,-500.0,0.00021917,2]
[349807923,1737438643495,-500.0,0.00021917,2]
[349807924,1737438643504,-500.0,0.00021917,2]
[349807925,1737438643514,-500.0,0.00021917,2]
[349807926,1737438643524,-500.0,0.00021917,2]
[349807927,1737438643533,-500.0,0.00021917,2]
[349807928,1737438643542,-500.0,0.00021917,2]
[349807929,1737438643552,-500.0,0.00021917,2]
[349807930,1737438643562,-500.0,0.00021917,2]
[349807931,1737438643574,-500.0,0.00021917,2]
[349807932,1737438643583,-4000.0,0.00021918,2]
[349807934,1737438643592,-150.0,0.00021918,2]
[349807936,1737438643601,-1000.0,0.00021924,2]
[349807938,1737438643611,-150.0,0.00021928,2]
[349807940,1737438643620,-318.5118201,0.00021932,2]
[349807942,1737438643631,-150.0,0.00021936,2]
[349807944,1737438643640,-150.0,0.00021939,2]
[349807946,1737438643650,-2361.0,0.00021947,2]
[349807948,1737438643659,-150.0,0.00021956,2]
[349807950,1737438643669,-500.0,0.00021958,2]
[349807952,1737438643678,-500.0,0.00021958,2]
[349807954,1737438643688,-500.0,0.00021958,2]
[349807956,1737438643697,-500.0,0.00021958,2]
[349807958,1737438643707,-595.27,0.00021958,2]
[349807960,1737438643716,-500.0,0.00021958,2]
[349807962,1737438643726,-525.82,0.00021958,2]
[349807964,1737438643735,-500.0,0.00021958,2]
[349807966,1737438643745,-557.31,0.00021958,2]
[349807968,1737438643754,-150.0,0.00021959,2]
[349807970,1737438643763,-151.27131971,0.00021969,2]
[349807972,1737438643773,-7689.95460551,0.0002197,2]
[349807974,1737438643782,-1000.0,0.0002197,2]
[349807976,1737438643792,-150.0,0.00021973,4]
[349807978,1737438643801,-150.0,0.00021973,4]
[349807980,1737438643810,-150.0,0.00021973,4]
[349807982,1737438643819,-151.6842555,0.00021973,4]
[349807984,1737438643829,-150.0,0.00021974,2]
[349807986,1737438643838,-150.0,0.00021975,2]
[349807988,1737438643848,-150.0,0.00021977,2]
[349807990,1737438643857,-500.0,0.00021978,2]
[349807992,1737438643866,-500.0,0.00021978,2]
[349807994,1737438643881,-500.0,0.00021978,2]
[349807996,1737438643891,-500.0,0.00021978,2]
[349807998,1737438643900,-500.0,0.00021978,2]
[349808000,1737438643910,-449.4834,0.00021978,2]
[349808002,1737438643920,-1000.0,0.00021978,2]
[349808004,1737438643930,-1000.0,0.00021978,2]
[349808006,1737438643940,-586.56,0.00021978,2]
[349808008,1737438643950,-150.0,0.00021979,2]
[349808010,1737438643960,-799.5110661,0.00021989,10]
[349808012,1737438643970,-1670.978812,0.0002199,29]
[349808014,1737438643981,-5050.0,0.0002199,34]
[349808016,1737438643990,-354.593981,0.0002199,2]
[349808018,1737438644000,-1667.4233989,0.0002199,2]
[349808020,1737438644010,-1000.0,0.00021991,2]
[349808022,1737438644019,-3155.7003569,0.00021993,2]
[349808024,1737438644028,-2385.6144512,0.00021993,2]
[349808026,1737438644038,-3911.1259703,0.00021993,2]
[349808028,1737438644048,-1580.0915823,0.00021993,2]
[349808030,1737438644057,-1000.0,0.00021994,2]
[349808032,1737438644067,-469.07037734,0.00021999,10]
[349808034,1737438644077,-500.0,0.00021999,2]
[349808036,1737438644089,-500.0,0.00021999,2]
[349808038,1737438644099,-500.0,0.00021999,2]
[349808040,1737438644109,-500.0,0.00021999,2]
[349808042,1737438644118,-500.0,0.00021999,2]
[349808044,1737438644130,-500.0,0.00021999,2]
[349808046,1737438644140,-500.0,0.00021999,2]
[349808049,1737438644150,-1000.0,0.00021999,2]
[349808051,1737438644161,-503.25,0.00021999,2]
[349808053,1737438644171,-30108.86887276,0.00021999,2]
[349808062,1737438644182,-1115.87,0.00021999,2]
[349808064,1737438644266,-332.5799057,0.00021999,2]
[349808066,1737438644275,-666.0,0.00021999,2]
[349808068,1737438644285,-220.09225564,0.00022,2]
[349808070,1737438644294,-6135792.31884253,0.00022,2]
[349808087,1737438644444,-15782.3610056,0.00022,2]
[349808089,1737438644456,-17281.66335171,0.00022,2]
[349808091,1737438644471,-515.30997632,0.00021,2]
[349808093,1737438644482,-9668.76202367,0.00022,2]
[349808096,1737438644500,-24209.02646715,0.00022,2]
[349808098,1737438644511,-3625.6268199,0.00022,2]
[349808142,1737438644951,-19.6185388,0.00020788,2]
[349808154,1737438646011,-815.11929141,0.00020788,2]
[349808155,1737438646126,-488.28855784,0.00020788,2]
[349808156,1737438646259,-155.53928337,0.00020788,2]
[349808157,1737438646270,-423.9,0.00020788,2]
[349808158,1737438646282,-1684.3624554,0.00020788,2]
[349808159,1737438646294,-1686.74817616,0.00020788,2]
[349808160,1737438646309,-826.61140209,0.00020788,2]
[349808164,1737438958824,572.04,0.00020211,60]
[349808165,1737439631912,155.73,0.00010137,2]
[349808167,1737439755281,-550.0,0.00015,2]
[349808168,1737439755302,-2008.0,0.00015,2]
[349808169,1737439755323,-165.25,0.00015872,2]
[349808170,1737439755345,-155.73,0.00017184,2]
[349808171,1737439773138,-386.33021874,0.00017858,2]
[349808173,1737439832196,-346.30978126,0.00017858,2]
[349808174,1737439832205,-412.814,0.00017965,2]
[349808175,1737439832214,-447.20029959,0.00019495,2]
[349808176,1737439832336,-260.86846214,0.00019495,2]
[349808177,1737439832347,-1498.78949728,0.00019495,2]
[349808178,1737439832359,-1182.71091713,0.00019495,2]
[349808179,1737439832370,-1011.8,0.00019495,2]
[349808180,1737439832381,-8960.2035753,0.00019495,2]
[349808181,1737439832411,-6920.39531898,0.00019495,2]
[349808182,1737439832491,-1418.02559259,0.00019495,2]
[349808183,1737439832505,-1026.73024974,0.00019495,2]
[349808184,1737439832517,-254.37134798,0.00019495,2]
[349808185,1737439832529,-506.59790095,0.00019495,2]
[349808186,1737439832595,-412.30683832,0.00019495,2]
[349808187,1737439832605,-241.87694282,0.00019534,2]
[349808188,1737439832678,-8.12305718,0.00019534,2]
[349808190,1737439832688,-150.96,0.00019542,2]
[349808192,1737439832697,-200.0,0.00019542,2]
[349808194,1737439832706,-440.13,0.00019547,2]
[349808196,1737439832716,-560.32,0.00019576,2]
[349808198,1737439832726,-243.25,0.0001959,2]
[349808200,1737439832736,-250.0,0.00019611,2]
[349808202,1737439832746,-724.0108,0.00019626,2]
[349808204,1737439832756,-174.41,0.00019635,2]
[349808207,1737439832774,-164.69,0.00019658,2]
[349808209,1737439832785,-311.91,0.00019668,2]
[349808211,1737439832794,-1032.28218952,0.00019726,14]
[349808213,1737439832804,-250.0,0.00019896,2]
[349808215,1737439832817,-381.92713511,0.0002,2]
[349808217,1737439832827,-170.53,0.00020073,2]
[349808219,1737439832837,-732.64,0.00020122,2]
[349808221,1737439832847,-537.23,0.00020138,2]
[349808223,1737439832858,-1890.23,0.00020157,2]
[349808225,1737439832868,-1000.0,0.0002016,2]
[349808228,1737439832879,-615.39,0.00020182,30]
[349808229,1737439832889,-150.0,0.00020182,2]
[349808232,1737439832900,-427.77390462,0.00020364,2]
[349808233,1737439832910,-186.6,0.00020374,2]
[349808236,1737439832919,-9000.0,0.000205,2]
[349808238,1737439832929,-1692.82,0.00020573,2]
[349808240,1737439832938,-763.81771767,0.00020751,2]
[349808242,1737439832947,-154.56273338,0.00020751,2]
[349808243,1737439832958,-1104.321,0.00020751,2]
[349808245,1737439832967,-960.39211606,0.000208,2]
[349808628,1737439838218,-1539.60788394,0.000208,2]
[349808629,1737439838228,-1000.0,0.000208,2]